[Event "Titled Tuesday Blitz April 18 Late 2023"]
[White "Davidson, Kevin"]
[Black "Martinez Reyes, Pedro Ramon"]
[WhiteFideId "2056810"]
[BlackFideId "3901807"]
[WhiteElo "2151"]
[BlackElo "2340"]
[Result "0-1"]
[Round "03"]
[TimeControl "180+2"]
[Date "2023.04.18"]
[WhiteClock "0:00:02"]
[BlackClock "0:00:50"]

1. e4 {[%clk 0:03:00]}  e6 {[%clk 0:02:57]} 2. d4 {[%clk 0:03:00]}  d5 {[%clk 0:02:58]} 3. Nc3 {[%clk 0:02:58]}  dxe4 {[%clk 0:02:56]} 4. Nxe4 {[%clk 0:02:58]}  Bd7 {[%clk 0:02:57]} 5. c4 {[%clk 0:02:56]}  Bc6 {[%clk 0:02:54]} 6. Nc3 {[%clk 0:02:56]}  Nf6 {[%clk 0:02:51]} 7. Nf3 {[%clk 0:02:55]}  Bxf3 {[%clk 0:02:48]} 8. Qxf3 {[%clk 0:02:54]}  Nc6 {[%clk 0:02:48]} 9. Be3 {[%clk 0:02:52]}  Bb4 {[%clk 0:02:43]} 10. Rd1 {[%clk 0:02:44]}  Qe7 {[%clk 0:02:41]} 11. Be2 {[%clk 0:02:37]}  O-O {[%clk 0:02:37]} 12. O-O {[%clk 0:02:37]}  Rad8 {[%clk 0:02:35]} 13. Ne4 {[%clk 0:02:26]}  Nxe4 {[%clk 0:02:27]} 14. Qxe4 {[%clk 0:02:27]}  f5 {[%clk 0:02:24]} 15. Qf4 {[%clk 0:02:08]}  Bd6 {[%clk 0:02:02]} 16. Qg5 {[%clk 0:02:08]}  f4 {[%clk 0:01:55]} 17. Qxe7 {[%clk 0:02:07]}  Bxe7 {[%clk 0:01:56]} 18. Bc1 {[%clk 0:02:00]}  Nxd4 {[%clk 0:01:55]} 19. Bg4 {[%clk 0:01:59]}  e5 {[%clk 0:01:50]} 20. Rfe1 {[%clk 0:01:53]}  Bf6 {[%clk 0:01:50]} 21. b4 {[%clk 0:01:47]}  g6 {[%clk 0:01:49]} 22. Bb2 {[%clk 0:01:33]}  Nc2 {[%clk 0:01:28]} 23. Rxd8 {[%clk 0:01:21]}  Rxd8 {[%clk 0:01:27]} 24. Rb1 {[%clk 0:01:18]}  Nxb4 {[%clk 0:01:17]} 25. Bxe5 {[%clk 0:01:09]}  Bxe5 {[%clk 0:01:18]} 26. Rxb4 {[%clk 0:01:09]}  b6 {[%clk 0:01:18]} 27. Ra4 {[%clk 0:00:36]}  a5 {[%clk 0:01:16]} 28. c5 {[%clk 0:00:36]}  h5 {[%clk 0:01:10]} 29. Bf3 {[%clk 0:00:25]}  Kg7 {[%clk 0:01:06]} 30. cxb6 {[%clk 0:00:25]}  cxb6 {[%clk 0:01:07]} 31. g3 {[%clk 0:00:24]}  fxg3 {[%clk 0:01:05]} 32. hxg3 {[%clk 0:00:21]}  Bd4 {[%clk 0:01:05]} 33. Kg2 {[%clk 0:00:17]}  Bc5 {[%clk 0:01:05]} 34. Re4 {[%clk 0:00:16]}  Rd2 {[%clk 0:01:03]} 35. Re2 {[%clk 0:00:16]}  Rd3 {[%clk 0:01:04]} 36. Be4 {[%clk 0:00:12]}  Rd4 {[%clk 0:01:04]} 37. f4 {[%clk 0:00:10]}  Kf6 {[%clk 0:01:02]} 38. Kf3 {[%clk 0:00:07]}  Ra4 {[%clk 0:01:01]} 39. Bd5 {[%clk 0:00:06]}  Ra3+ {[%clk 0:01:01]} 40. Kg2 {[%clk 0:00:06]}  Be3 {[%clk 0:01:00]} 41. Bb3 {[%clk 0:00:04]}  Bc5 {[%clk 0:00:56]} 42. Bd5 {[%clk 0:00:04]}  Rc3 {[%clk 0:00:55]} 43. Re6+ {[%clk 0:00:03]}  Kg7 {[%clk 0:00:55]} 44. Re2 {[%clk 0:00:03]}  a4 {[%clk 0:00:53]} 45. Be6 {[%clk 0:00:03]}  Rd3 {[%clk 0:00:51]} 46. Kf1 {[%clk 0:00:02]}  Rxg3 {[%clk 0:00:50]} 47. f5 {[%clk 0:00:02]}  Rg1# {[%clk 0:00:50]} 0-1


[Site "https://www.chess.com"]

[Event "Titled Tuesday Blitz April 18 Late 2023"]
[White "Krishnan, Varun"]
[Black "micke12a"]
[WhiteFideId "5054508"]
[WhiteElo "2603"]
[BlackElo "2369"]
[Result "1-0"]
[Round "03"]
[TimeControl "180+2"]
[Date "2023.04.18"]
[WhiteClock "0:00:39"]
[BlackClock "0:00:03"]

1. d4 {[%clk 0:03:00]}  d5 {[%clk 0:02:59]} 2. c4 {[%clk 0:02:59]}  c6 {[%clk 0:02:59]} 3. Nc3 {[%clk 0:02:59]}  Nf6 {[%clk 0:02:59]} 4. e3 {[%clk 0:03:00]}  e6 {[%clk 0:02:59]} 5. Nf3 {[%clk 0:03:00]}  Nbd7 {[%clk 0:02:59]} 6. Qc2 {[%clk 0:03:01]}  Bd6 {[%clk 0:02:59]} 7. g4 {[%clk 0:03:01]}  e5 {[%clk 0:02:38]} 8. g5 {[%clk 0:02:57]}  exd4 {[%clk 0:02:32]} 9. gxf6 {[%clk 0:02:47]}  dxc3 {[%clk 0:02:32]} 10. fxg7 {[%clk 0:02:43]}  Rg8 {[%clk 0:02:32]} 11. Qxc3 {[%clk 0:02:39]}  Qe7 {[%clk 0:02:26]} 12. Bd2 {[%clk 0:02:38]}  dxc4 {[%clk 0:02:12]} 13. Bxc4 {[%clk 0:02:37]}  b5 {[%clk 0:02:08]} 14. Bd3 {[%clk 0:02:34]}  Bb7 {[%clk 0:02:02]} 15. Bxh7 {[%clk 0:02:30]}  O-O-O {[%clk 0:01:56]} 16. Bxg8 {[%clk 0:02:26]}  Rxg8 {[%clk 0:01:55]} 17. Nd4 {[%clk 0:02:26]}  c5 {[%clk 0:01:33]} 18. Nxb5 {[%clk 0:02:20]}  Bxh1 {[%clk 0:01:32]} 19. O-O-O {[%clk 0:02:06]}  Bb7 {[%clk 0:01:18]} 20. Nxa7+ {[%clk 0:01:55]}  Kb8 {[%clk 0:01:17]} 21. Nb5 {[%clk 0:01:52]}  Be5 {[%clk 0:01:06]} 22. Qa5 {[%clk 0:01:46]}  Qf6 {[%clk 0:00:49]} 23. Bc3 {[%clk 0:01:21]}  Bxc3 {[%clk 0:00:48]} 24. Qc7+ {[%clk 0:01:12]}  Ka8 {[%clk 0:00:44]} 25. bxc3 {[%clk 0:00:53]}  Nb8 {[%clk 0:00:20]} 26. Rd6 {[%clk 0:00:39]}  Qxf2 {[%clk 0:00:03]} 27. Qa5+ {[%clk 0:00:38]}  Na6 {[%clk 0:00:03]} 28. Rxa6+ {[%clk 0:00:38]}  Bxa6 {[%clk 0:00:03]} 29. Qxa6+ {[%clk 0:00:39]} 1-0


[Site "https://www.chess.com"]

[Event "Titled Tuesday Blitz April 18 Late 2023"]
[White "Schuster, Karsten"]
[Black "Sokolovsky, Yahli"]
[WhiteFideId "4611071"]
[BlackFideId "2820242"]
[WhiteElo "2294"]
[BlackElo "2316"]
[Result "0-1"]
[Round "03"]
[TimeControl "180+2"]
[Date "2023.04.18"]
[WhiteClock "0:00:05"]
[BlackClock "0:00:09"]

1. d4 {[%clk 0:03:00]}  d6 {[%clk 0:03:00]} 2. c4 {[%clk 0:03:01]}  g6 {[%clk 0:02:52]} 3. Nc3 {[%clk 0:03:01]}  Bg7 {[%clk 0:02:52]} 4. e4 {[%clk 0:03:01]}  Nf6 {[%clk 0:02:46]} 5. Be2 {[%clk 0:03:00]}  Nbd7 {[%clk 0:02:42]} 6. Bg5 {[%clk 0:03:00]}  c5 {[%clk 0:02:38]} 7. d5 {[%clk 0:03:00]}  h6 {[%clk 0:02:20]} 8. Bf4 {[%clk 0:02:59]}  O-O {[%clk 0:02:21]} 9. Qd2 {[%clk 0:02:58]}  Kh7 {[%clk 0:02:21]} 10. h3 {[%clk 0:02:56]}  b5 {[%clk 0:02:21]} 11. cxb5 {[%clk 0:02:53]}  a6 {[%clk 0:02:21]} 12. a4 {[%clk 0:02:54]}  axb5 {[%clk 0:02:20]} 13. Bxb5 {[%clk 0:02:54]}  Ba6 {[%clk 0:02:20]} 14. Bxa6 {[%clk 0:02:52]}  Rxa6 {[%clk 0:02:20]} 15. f3 {[%clk 0:02:51]}  Qa8 {[%clk 0:02:13]} 16. Nge2 {[%clk 0:02:50]}  Rb8 {[%clk 0:02:13]} 17. O-O {[%clk 0:02:49]}  Nb6 {[%clk 0:02:08]} 18. b3 {[%clk 0:02:43]}  Nfd7 {[%clk 0:01:59]} 19. Nb5 {[%clk 0:02:41]}  Rb7 {[%clk 0:01:50]} 20. Rac1 {[%clk 0:02:32]}  c4 {[%clk 0:01:47]} 21. Ned4 {[%clk 0:02:23]}  Nc5 {[%clk 0:01:42]} 22. bxc4 {[%clk 0:02:16]}  Rxa4 {[%clk 0:01:42]} 23. Kh1 {[%clk 0:01:58]}  Nxc4 {[%clk 0:01:39]} 24. Qe2 {[%clk 0:01:51]}  Ne5 {[%clk 0:01:33]} 25. Rb1 {[%clk 0:01:39]}  Ned3 {[%clk 0:01:23]} 26. Be3 {[%clk 0:01:36]}  Ra2 {[%clk 0:01:22]} 27. Qd1 {[%clk 0:01:32]}  Qa6 {[%clk 0:00:36]} 28. Nc3 {[%clk 0:01:24]}  Ra3 {[%clk 0:00:34]} 29. Rxb7 {[%clk 0:01:21]}  Qxb7 {[%clk 0:00:34]} 30. Ncb5 {[%clk 0:01:17]}  Ra2 {[%clk 0:00:33]} 31. Qb1 {[%clk 0:01:12]}  Rb2 {[%clk 0:00:32]} 32. Qd1 {[%clk 0:01:00]}  Rxb5 {[%clk 0:00:33]} 33. Nxb5 {[%clk 0:01:00]}  Qxb5 {[%clk 0:00:34]} 34. Bxc5 {[%clk 0:00:57]}  dxc5 {[%clk 0:00:30]} 35. f4 {[%clk 0:00:51]}  Bd4 {[%clk 0:00:28]} 36. Qf3 {[%clk 0:00:49]}  c4 {[%clk 0:00:21]} 37. e5 {[%clk 0:00:46]}  f5 {[%clk 0:00:09]} 38. d6 {[%clk 0:00:43]}  exd6 {[%clk 0:00:07]} 39. exd6 {[%clk 0:00:43]}  c3 {[%clk 0:00:04]} 40. d7 {[%clk 0:00:39]}  Bf6 {[%clk 0:00:04]} 41. Qe3 {[%clk 0:00:27]}  Qxd7 {[%clk 0:00:04]} 42. Ra1 {[%clk 0:00:20]}  c2 {[%clk 0:00:03]} 43. Ra7 {[%clk 0:00:19]}  c1=Q+ {[%clk 0:00:04]} 44. Qxc1 {[%clk 0:00:19]}  Qxa7 {[%clk 0:00:05]} 45. Qc6 {[%clk 0:00:19]}  Nxf4 {[%clk 0:00:04]} 46. Qxf6 {[%clk 0:00:17]}  Nh5 {[%clk 0:00:04]} 47. Qd6 {[%clk 0:00:15]}  Ng7 {[%clk 0:00:04]} 48. Kh2 {[%clk 0:00:14]}  Qf7 {[%clk 0:00:05]} 49. h4 {[%clk 0:00:14]}  Qe6 {[%clk 0:00:05]} 50. Qc7 {[%clk 0:00:13]}  h5 {[%clk 0:00:06]} 51. g3 {[%clk 0:00:13]}  Qf6 {[%clk 0:00:06]} 52. Kh3 {[%clk 0:00:13]}  Qb2 {[%clk 0:00:07]} 53. Qf7 {[%clk 0:00:11]}  Qe2 {[%clk 0:00:07]} 54. Qf8 {[%clk 0:00:09]}  Qg4+ {[%clk 0:00:08]} 55. Kh2 {[%clk 0:00:09]}  f4 {[%clk 0:00:09]} 56. gxf4 {[%clk 0:00:08]}  Qxh4+ {[%clk 0:00:09]} 57. Kg2 {[%clk 0:00:08]}  Qg4+ {[%clk 0:00:10]} 58. Kh2 {[%clk 0:00:08]}  h4 {[%clk 0:00:11]} 59. Qf7 {[%clk 0:00:07]}  h3 {[%clk 0:00:09]} 60. Qd5 {[%clk 0:00:05]}  Qxf4+ {[%clk 0:00:08]} 61. Kxh3 {[%clk 0:00:05]}  Qf5+ {[%clk 0:00:08]} 62. Qxf5 {[%clk 0:00:05]}  Nxf5 {[%clk 0:00:09]} 0-1


[Site "https://www.chess.com"]

[Event "Titled Tuesday Blitz April 18 Late 2023"]
[White "Hoffmann, Asa"]
[Black "Srinath, Rao S.V."]
[WhiteFideId "2001470"]
[BlackFideId "5028876"]
[WhiteElo "2117"]
[BlackElo "2196"]
[Result "1-0"]
[Round "03"]
[TimeControl "180+2"]
[Date "2023.04.18"]
[WhiteClock "0:00:16"]
[BlackClock "0:00:15"]

1. d4 {[%clk 0:02:58]}  c5 {[%clk 0:02:58]} 2. dxc5 {[%clk 0:02:57]}  e6 {[%clk 0:02:55]} 3. Nc3 {[%clk 0:02:56]}  Bxc5 {[%clk 0:02:54]} 4. Ne4 {[%clk 0:02:56]}  Nf6 {[%clk 0:02:49]} 5. Nxc5 {[%clk 0:02:55]}  Qa5+ {[%clk 0:02:50]} 6. c3 {[%clk 0:02:55]}  Qxc5 {[%clk 0:02:50]} 7. Be3 {[%clk 0:02:53]}  Qc7 {[%clk 0:02:48]} 8. Nf3 {[%clk 0:02:53]}  Nc6 {[%clk 0:02:46]} 9. g3 {[%clk 0:02:53]}  d5 {[%clk 0:02:46]} 10. Bg2 {[%clk 0:02:52]}  O-O {[%clk 0:02:45]} 11. O-O {[%clk 0:02:52]}  Ne4 {[%clk 0:02:44]} 12. Nd2 {[%clk 0:02:45]}  Nxd2 {[%clk 0:02:34]} 13. Qxd2 {[%clk 0:02:44]}  b6 {[%clk 0:02:33]} 14. Bf4 {[%clk 0:02:37]}  Qe7 {[%clk 0:02:33]} 15. e4 {[%clk 0:02:37]}  dxe4 {[%clk 0:02:24]} 16. Bxe4 {[%clk 0:02:33]}  Bb7 {[%clk 0:02:24]} 17. Qd6 {[%clk 0:02:13]}  Qxd6 {[%clk 0:02:14]} 18. Bxd6 {[%clk 0:02:13]}  Rfd8 {[%clk 0:02:15]} 19. Rfd1 {[%clk 0:02:13]}  Rd7 {[%clk 0:02:09]} 20. Bf4 {[%clk 0:02:04]}  Rad8 {[%clk 0:02:09]} 21. Rxd7 {[%clk 0:01:57]}  Rxd7 {[%clk 0:02:09]} 22. Re1 {[%clk 0:01:55]}  h6 {[%clk 0:01:52]} 23. h4 {[%clk 0:01:54]}  Ne7 {[%clk 0:01:45]} 24. Bxb7 {[%clk 0:01:52]}  Rxb7 {[%clk 0:01:46]} 25. Rd1 {[%clk 0:01:52]}  Nd5 {[%clk 0:01:45]} 26. Bc1 {[%clk 0:01:43]}  b5 {[%clk 0:01:44]} 27. Kf1 {[%clk 0:01:37]}  a5 {[%clk 0:01:42]} 28. Ke2 {[%clk 0:01:37]}  Rc7 {[%clk 0:01:38]} 29. Rd4 {[%clk 0:01:31]}  f6 {[%clk 0:01:26]} 30. a4 {[%clk 0:01:26]}  b4 {[%clk 0:01:19]} 31. c4 {[%clk 0:01:25]}  Nb6 {[%clk 0:01:19]} 32. b3 {[%clk 0:01:25]}  Nd7 {[%clk 0:01:16]} 33. Be3 {[%clk 0:01:22]}  Kf7 {[%clk 0:01:10]} 34. Rd6 {[%clk 0:01:21]}  Nc5 {[%clk 0:00:49]} 35. Bxc5 {[%clk 0:01:17]}  Rxc5 {[%clk 0:00:50]} 36. f4 {[%clk 0:01:15]}  g5 {[%clk 0:00:46]} 37. Ke3 {[%clk 0:01:06]}  gxh4 {[%clk 0:00:40]} 38. gxh4 {[%clk 0:01:06]}  Rh5 {[%clk 0:00:38]} 39. c5 {[%clk 0:00:57]}  Rxc5 {[%clk 0:00:37]} 40. Ra6 {[%clk 0:00:46]}  Rc3+ {[%clk 0:00:29]} 41. Kd4 {[%clk 0:00:46]}  Rxb3 {[%clk 0:00:30]} 42. Rxa5 {[%clk 0:00:46]}  Ra3 {[%clk 0:00:30]} 43. h5 {[%clk 0:00:46]}  f5 {[%clk 0:00:27]} 44. Kc4 {[%clk 0:00:42]}  Rf3 {[%clk 0:00:23]} 45. Kxb4 {[%clk 0:00:41]}  Rxf4+ {[%clk 0:00:24]} 46. Kb5 {[%clk 0:00:39]}  Rf1 {[%clk 0:00:21]} 47. Ra8 {[%clk 0:00:36]}  Rb1+ {[%clk 0:00:19]} 48. Kc6 {[%clk 0:00:35]}  f4 {[%clk 0:00:20]} 49. Ra7+ {[%clk 0:00:31]}  Kf6 {[%clk 0:00:19]} 50. Ra8 {[%clk 0:00:32]}  Ke5 {[%clk 0:00:18]} 51. Rf8 {[%clk 0:00:31]}  Ra1 {[%clk 0:00:18]} 52. Kb5 {[%clk 0:00:30]}  Ke4 {[%clk 0:00:18]} 53. a5 {[%clk 0:00:30]}  e5 {[%clk 0:00:17]} 54. a6 {[%clk 0:00:30]}  Rb1+ {[%clk 0:00:17]} 55. Kc6 {[%clk 0:00:30]}  Rc1+ {[%clk 0:00:17]} 56. Kb7 {[%clk 0:00:29]}  Rb1+ {[%clk 0:00:18]} 57. Kc7 {[%clk 0:00:29]}  Ra1 {[%clk 0:00:18]} 58. Kb7 {[%clk 0:00:27]}  f3 {[%clk 0:00:18]} 59. a7 {[%clk 0:00:27]}  Rb1+ {[%clk 0:00:18]} 60. Kc7 {[%clk 0:00:27]}  Rc1+ {[%clk 0:00:19]} 61. Kb7 {[%clk 0:00:27]}  Rb1+ {[%clk 0:00:19]} 62. Kc7 {[%clk 0:00:27]}  Ra1 {[%clk 0:00:19]} 63. Kb7 {[%clk 0:00:27]}  Ke3 {[%clk 0:00:20]} 64. a8=Q {[%clk 0:00:26]}  Rxa8 {[%clk 0:00:20]} 65. Kxa8 {[%clk 0:00:26]}  f2 {[%clk 0:00:20]} 66. Kb7 {[%clk 0:00:25]}  Ke2 {[%clk 0:00:20]} 67. Kc6 {[%clk 0:00:25]}  f1=Q {[%clk 0:00:17]} 68. Rxf1 {[%clk 0:00:24]}  Kxf1 {[%clk 0:00:18]} 69. Kd5 {[%clk 0:00:24]}  Kg2 {[%clk 0:00:18]} 70. Kxe5 {[%clk 0:00:24]}  Kg3 {[%clk 0:00:15]} 71. Kf5 {[%clk 0:00:16]}  Kf3 {[%clk 0:00:14]} 72. Kg6 {[%clk 0:00:15]}  Kf4 {[%clk 0:00:15]} 73. Kxh6 {[%clk 0:00:16]}  Kf5 {[%clk 0:00:15]} 74. Kg7 {[%clk 0:00:16]} 1-0


[Site "https://www.chess.com"]

[Event "Titled Tuesday Blitz April 18 Late 2023"]
[White "Szente Varga, Fruzsina"]
[Black "Ozates, Tuna"]
[WhiteFideId "712264"]
[BlackFideId "6354521"]
[WhiteElo "1994"]
[BlackElo "2151"]
[Result "0-1"]
[Round "03"]
[TimeControl "180+2"]
[Date "2023.04.18"]
[WhiteClock "0:00:25"]
[BlackClock "0:01:23"]

1. e4 {[%clk 0:03:00]}  d6 {[%clk 0:02:50]} 2. d4 {[%clk 0:03:00]}  Nf6 {[%clk 0:02:50]} 3. Nc3 {[%clk 0:03:01]}  g6 {[%clk 0:02:51]} 4. f3 {[%clk 0:03:01]}  Bg7 {[%clk 0:02:50]} 5. Be3 {[%clk 0:03:02]}  O-O {[%clk 0:02:50]} 6. Qd2 {[%clk 0:03:03]}  a6 {[%clk 0:02:49]} 7. O-O-O {[%clk 0:03:03]}  b5 {[%clk 0:02:50]} 8. h4 {[%clk 0:03:03]}  b4 {[%clk 0:02:51]} 9. Nce2 {[%clk 0:03:03]}  h5 {[%clk 0:02:50]} 10. Bh6 {[%clk 0:02:49]}  a5 {[%clk 0:02:49]} 11. Bxg7 {[%clk 0:02:41]}  Kxg7 {[%clk 0:02:50]} 12. Qf4 {[%clk 0:02:24]}  Nc6 {[%clk 0:02:46]} 13. g4 {[%clk 0:02:17]}  e5 {[%clk 0:02:45]} 14. Qg3 {[%clk 0:02:08]}  a4 {[%clk 0:02:40]} 15. dxe5 {[%clk 0:01:55]}  Nxe5 {[%clk 0:02:38]} 16. Nf4 {[%clk 0:01:53]}  Rh8 {[%clk 0:02:31]} 17. gxh5 {[%clk 0:01:51]}  Nxh5 {[%clk 0:02:31]} 18. Nxh5+ {[%clk 0:01:51]}  Rxh5 {[%clk 0:02:31]} 19. Be2 {[%clk 0:01:49]}  b3 {[%clk 0:02:31]} 20. cxb3 {[%clk 0:01:43]}  axb3 {[%clk 0:02:32]} 21. a3 {[%clk 0:01:44]}  Ba6 {[%clk 0:02:26]} 22. f4 {[%clk 0:01:26]}  Bxe2 {[%clk 0:02:25]} 23. Nxe2 {[%clk 0:01:27]}  Nc4 {[%clk 0:02:20]} 24. f5 {[%clk 0:01:15]}  Qf6 {[%clk 0:02:08]} 25. Qxb3 {[%clk 0:00:40]}  Ra5 {[%clk 0:02:06]} 26. Kb1 {[%clk 0:00:37]}  d5 {[%clk 0:01:47]} 27. Nf4 {[%clk 0:00:34]}  Rxh4 {[%clk 0:01:39]} 28. Nxd5 {[%clk 0:00:32]}  Rxd5 {[%clk 0:01:25]} 29. Rxh4 {[%clk 0:00:25]}  Rxd1+ {[%clk 0:01:23]} 30. Qxd1 {[%clk 0:00:25]}  Qxb2# {[%clk 0:01:23]} 0-1


[Site "https://www.chess.com"]

[Event "Titled Tuesday Blitz April 18 Late 2023"]
[White "Gubajdullin, Alexei"]
[Black "Bogaudinov, Rushan"]
[WhiteFideId "4141202"]
[BlackFideId "4129288"]
[WhiteElo "2279"]
[BlackElo "1967"]
[Result "0-1"]
[Round "03"]
[TimeControl "180+2"]
[Date "2023.04.18"]
[WhiteClock "0:00:12"]
[BlackClock "0:00:18"]

1. e4 {[%clk 0:03:00]}  c5 {[%clk 0:02:44]} 2. g3 {[%clk 0:02:55]}  d5 {[%clk 0:02:41]} 3. exd5 {[%clk 0:02:55]}  Qxd5 {[%clk 0:02:41]} 4. Nf3 {[%clk 0:02:54]}  Qe4+ {[%clk 0:02:40]} 5. Qe2 {[%clk 0:02:51]}  Qxe2+ {[%clk 0:02:38]} 6. Bxe2 {[%clk 0:02:51]}  e6 {[%clk 0:02:32]} 7. Na3 {[%clk 0:02:50]}  a6 {[%clk 0:02:28]} 8. Nc4 {[%clk 0:02:49]}  Nd7 {[%clk 0:02:27]} 9. a4 {[%clk 0:02:48]}  Ngf6 {[%clk 0:02:22]} 10. a5 {[%clk 0:02:45]}  Be7 {[%clk 0:02:15]} 11. c3 {[%clk 0:02:35]}  O-O {[%clk 0:02:14]} 12. d3 {[%clk 0:02:32]}  Nd5 {[%clk 0:02:13]} 13. Nfd2 {[%clk 0:02:28]}  b5 {[%clk 0:02:07]} 14. axb6 {[%clk 0:02:27]}  N7xb6 {[%clk 0:02:07]} 15. Nxb6 {[%clk 0:02:23]}  Nxb6 {[%clk 0:02:08]} 16. Bf3 {[%clk 0:02:21]}  Rb8 {[%clk 0:01:56]} 17. Ke2 {[%clk 0:02:13]}  Rd8 {[%clk 0:01:50]} 18. Ra5 {[%clk 0:02:10]}  g6 {[%clk 0:01:26]} 19. Ne4 {[%clk 0:02:08]}  Bb7 {[%clk 0:01:19]} 20. Be3 {[%clk 0:01:51]}  Nd7 {[%clk 0:00:45]} 21. Bc1 {[%clk 0:01:35]}  Ne5 {[%clk 0:00:38]} 22. Bg2 {[%clk 0:01:11]}  Nxd3 {[%clk 0:00:34]} 23. f3 {[%clk 0:00:42]}  Bxe4 {[%clk 0:00:31]} 24. fxe4 {[%clk 0:00:42]}  Nxc1+ {[%clk 0:00:32]} 25. Rxc1 {[%clk 0:00:42]}  Rxb2+ {[%clk 0:00:32]} 26. Kf1 {[%clk 0:00:37]}  Rdd2 {[%clk 0:00:28]} 27. Bh1 {[%clk 0:00:36]}  Rxh2 {[%clk 0:00:27]} 28. Kg1 {[%clk 0:00:36]}  Bg5 {[%clk 0:00:26]} 29. Re1 {[%clk 0:00:34]}  Rhc2 {[%clk 0:00:19]} 30. Bf3 {[%clk 0:00:21]}  Rxc3 {[%clk 0:00:18]} 31. Rf1 {[%clk 0:00:12]}  Be3+ {[%clk 0:00:18]} 32. Kh1 {[%clk 0:00:12]}  Rcc2 {[%clk 0:00:18]} 0-1


[Site "https://www.chess.com"]

[Event "Titled Tuesday Blitz April 18 Late 2023"]
[White "Ward, Ieuan C"]
[Black "MKlose11"]
[WhiteFideId "406627"]
[WhiteElo "2326"]
[BlackElo "2574"]
[Result "0-1"]
[Round "03"]
[TimeControl "180+2"]
[Date "2023.04.18"]
[WhiteClock "0:00:14"]
[BlackClock "0:00:09"]

1. e4 {[%clk 0:03:00]}  e6 {[%clk 0:03:00]} 2. d4 {[%clk 0:03:00]}  d5 {[%clk 0:03:01]} 3. exd5 {[%clk 0:02:58]}  exd5 {[%clk 0:03:01]} 4. Bd3 {[%clk 0:02:59]}  Nf6 {[%clk 0:03:00]} 5. Nf3 {[%clk 0:02:59]}  c5 {[%clk 0:03:01]} 6. O-O {[%clk 0:02:58]}  Be7 {[%clk 0:03:01]} 7. c3 {[%clk 0:02:57]}  O-O {[%clk 0:03:01]} 8. Bg5 {[%clk 0:02:55]}  Nc6 {[%clk 0:03:01]} 9. Nbd2 {[%clk 0:02:53]}  Bg4 {[%clk 0:02:56]} 10. dxc5 {[%clk 0:02:46]}  Bxc5 {[%clk 0:02:56]} 11. Qb3 {[%clk 0:02:36]}  Be6 {[%clk 0:02:12]} 12. Qxb7 {[%clk 0:02:28]}  Na5 {[%clk 0:01:39]} 13. Qb5 {[%clk 0:02:22]}  Be7 {[%clk 0:01:39]} 14. Rab1 {[%clk 0:02:07]}  Bd7 {[%clk 0:01:33]} 15. Qa6 {[%clk 0:01:55]}  Rb8 {[%clk 0:01:25]} 16. b4 {[%clk 0:01:40]}  Nc4 {[%clk 0:00:52]} 17. Nxc4 {[%clk 0:01:31]}  Bb5 {[%clk 0:00:52]} 18. Qxa7 {[%clk 0:01:24]}  dxc4 {[%clk 0:00:51]} 19. Bc2 {[%clk 0:01:10]}  h6 {[%clk 0:00:48]} 20. Bf4 {[%clk 0:01:02]}  Ra8 {[%clk 0:00:47]} 21. Qb7 {[%clk 0:01:02]}  Ba6 {[%clk 0:00:20]} 22. Qc7 {[%clk 0:00:58]}  Nd5 {[%clk 0:00:14]} 23. Qxd8 {[%clk 0:00:57]}  Rfxd8 {[%clk 0:00:15]} 24. Be5 {[%clk 0:00:57]}  Bb5 {[%clk 0:00:13]} 25. Ra1 {[%clk 0:00:55]}  Ba4 {[%clk 0:00:13]} 26. Be4 {[%clk 0:00:53]}  Ra6 {[%clk 0:00:10]} 27. Rfc1 {[%clk 0:00:46]}  f6 {[%clk 0:00:08]} 28. Bd4 {[%clk 0:00:45]}  Nf4 {[%clk 0:00:07]} 29. Kf1 {[%clk 0:00:41]}  Ne6 {[%clk 0:00:08]} 30. Be3 {[%clk 0:00:40]}  Kf7 {[%clk 0:00:04]} 31. Nd4 {[%clk 0:00:37]}  g6 {[%clk 0:00:03]} 32. Nxe6 {[%clk 0:00:34]}  Rxe6 {[%clk 0:00:04]} 33. Bf3 {[%clk 0:00:31]}  f5 {[%clk 0:00:04]} 34. Bd4 {[%clk 0:00:29]}  Bf6 {[%clk 0:00:03]} 35. Bxf6 {[%clk 0:00:29]}  Kxf6 {[%clk 0:00:04]} 36. Be2 {[%clk 0:00:25]}  Rc6 {[%clk 0:00:05]} 37. a3 {[%clk 0:00:24]}  Rd2 {[%clk 0:00:05]} 38. Ke1 {[%clk 0:00:24]}  Rb2 {[%clk 0:00:05]} 39. Rcb1 {[%clk 0:00:25]}  Rc2 {[%clk 0:00:05]} 40. Rc1 {[%clk 0:00:25]}  Rb2 {[%clk 0:00:05]} 41. Bf3 {[%clk 0:00:25]}  Re6+ {[%clk 0:00:05]} 42. Kf1 {[%clk 0:00:25]}  Rd6 {[%clk 0:00:05]} 43. Bd1 {[%clk 0:00:22]}  Rdd2 {[%clk 0:00:04]} 44. Bxa4 {[%clk 0:00:20]}  Rxf2+ {[%clk 0:00:04]} 45. Ke1 {[%clk 0:00:18]}  Rbe2+ {[%clk 0:00:04]} 46. Kd1 {[%clk 0:00:18]}  Rd2+ {[%clk 0:00:05]} 47. Ke1 {[%clk 0:00:19]}  Rfe2+ {[%clk 0:00:04]} 48. Kf1 {[%clk 0:00:19]}  Rf2+ {[%clk 0:00:05]} 49. Ke1 {[%clk 0:00:19]}  Rxg2 {[%clk 0:00:06]} 50. Bd1 {[%clk 0:00:16]}  Rxh2 {[%clk 0:00:06]} 51. Be2 {[%clk 0:00:14]}  Rdxe2+ {[%clk 0:00:06]} 52. Kf1 {[%clk 0:00:14]}  Rhf2+ {[%clk 0:00:06]} 53. Kg1 {[%clk 0:00:14]}  Rg2+ {[%clk 0:00:04]} 54. Kh1 {[%clk 0:00:14]}  Rh2+ {[%clk 0:00:05]} 55. Kg1 {[%clk 0:00:15]}  Reg2+ {[%clk 0:00:06]} 56. Kf1 {[%clk 0:00:15]}  Rb2 {[%clk 0:00:07]} 57. Kg1 {[%clk 0:00:15]}  g5 {[%clk 0:00:07]} 58. a4 {[%clk 0:00:15]}  f4 {[%clk 0:00:07]} 59. a5 {[%clk 0:00:15]}  f3 {[%clk 0:00:08]} 60. a6 {[%clk 0:00:14]}  Rbg2+ {[%clk 0:00:08]} 61. Kf1 {[%clk 0:00:14]}  Rh1# {[%clk 0:00:09]} 0-1


[Site "https://www.chess.com"]